bitfinex/quotes_ETHUSD_20250929
["timestamp","ask_amount","ask_price","bid_price","bid_amount"]
[1759139130450,0.001,4136.0,4135.9,3.20985342]
[1759139130656,0.001,4136.0,4135.9,6.39683195]
[1759139130881,0.001,4136.0,4135.9,7.03175342]
[1759139131156,0.001,4136.0,4135.9,21.62868494]
[1759139131681,0.001,4136.0,4135.9,20.96958494]
[1759139131979,0.001,4136.0,4135.9,23.96743622]
[1759139133483,0.001,4136.0,4135.9,20.26633622]
[1759139133694,0.001,4136.0,4135.9,23.30833622]
[1759139133869,0.001,4136.0,4135.9,23.96743622]
[1759139136179,0.0002,4136.0,4135.9,23.96743622]
[1759139137867,0.0002,4136.0,4135.9,20.26633622]
[1759139138071,0.0002,4136.0,4135.9,23.30733622]
[1759139138273,0.0002,4136.0,4135.9,19.47433622]
[1759139138475,0.6944,4136.0,4135.9,22.4184047]
[1759139140388,0.6944,4136.0,4135.9,19.3774047]
[1759139140596,0.6944,4136.0,4135.9,22.4184047]
[1759139142402,0.6944,4136.0,4135.9,14.5]
[1759139142603,0.6944,4136.0,4135.9,17.541]
[1759139143318,0.6944,4136.0,4135.9,16.91785342]
[1759139143518,0.6944,4136.0,4135.9,19.95885342]
[1759139145619,0.6944,4136.0,4135.9,5.45885342]
[1759139145979,0.6944,4136.0,4135.9,19.95885342]
[1759139146381,0.6944,4136.0,4135.9,14.5]
[1759139147104,0.6944,4136.0,4135.9,16.91785342]
[1759139148505,0.6944,4136.0,4135.9,19.95885342]
[1759139149306,0.6944,4136.0,4135.9,17.541]
[1759139149613,0.6944,4136.0,4135.9,19.95885342]
[1759139152516,0.0002,4136.0,4135.9,20.07965342]
[1759139153117,0.6708,4136.0,4135.9,17.6618]
[1759139153279,0.6708,4136.0,4135.9,14.6208]
[1759139153779,0.6708,4136.0,4135.9,14.5]
[1759139155195,6.76873146,4136.0,4135.9,14.5]
[1759139155789,5.41785342,4135.9,4135.8,0.002]
[1759139156002,0.2311,4136.0,4135.8,0.002]
[1759139156217,0.0002,4136.0,4135.9,2.41785342]
[1759139156419,0.0002,4136.0,4135.8,2.41990078]
[1759139156620,0.6706,4135.9,4135.8,0.002]
[1759139156916,0.2309,4135.9,4135.8,0.002]
[1759139157217,0.2309,4135.9,4135.8,16.944091]
[1759139157421,0.2309,4135.9,4135.8,16.91991189]
[1759139157994,0.2309,4135.9,4135.8,14.502]
[1759139158324,0.6706,4135.9,4135.8,14.502]
[1759139158691,0.6706,4135.9,4135.8,16.91991189]
[1759139159915,0.6706,4135.9,4135.8,14.502]
[1759139161198,0.6698,4135.9,4135.8,14.502]
[1759139168329,0.2301,4135.9,4135.8,0.002]
[1759139170545,0.0002,4136.0,4135.8,0.002]
[1759139170925,0.0002,4136.0,4135.8,0.6858]
[1759139171325,0.0002,4136.0,4135.8,2.41991189]
[1759139171530,0.0002,4136.0,4135.9,14.5]
[1759139171716,0.0002,4136.0,4135.9,16.91785342]
[1759139171921,0.0002,4136.0,4135.9,19.97241532]
[1759139173256,0.0002,4136.0,4135.9,19.28861532]
[1759139173438,0.0002,4136.0,4135.9,19.97241532]
[1759139174132,0.0002,4136.0,4135.9,23.01341532]
[1759139180166,0.0002,4136.0,4135.9,19.97241532]
[1759139180370,0.0002,4136.0,4135.9,23.01241532]
[1759139181843,0.0002,4136.0,4135.9,19.97241532]
[1759139182048,0.0002,4136.0,4135.9,23.01241532]
[1759139183955,0.0002,4136.0,4135.9,22.32861532]
[1759139184475,0.0002,4136.0,4135.9,22.79001532]
[1759139184678,0.0002,4136.0,4135.9,23.01611532]
[1759139186166,0.0004,4136.1,4136.0,2.41779497]
[1759139186376,0.0004,4136.1,4136.0,5.39735722]
[1759139186671,0.0004,4136.1,4136.0,3.10529497]
[1759139186871,0.0004,4136.1,4136.0,17.60529497]
[1759139187962,0.0004,4136.1,4136.0,19.95779497]
[1759139188488,0.2323,4136.1,4136.0,19.95779497]
[1759139188694,0.0004,4136.1,4136.0,20.64529497]
[1759139188881,0.0004,4136.1,4136.0,23.16345722]
[1759139194906,0.0004,4136.1,4136.0,22.47595722]
[1759139197583,0.0004,4136.1,4136.0,23.16345722]
[1759139198708,0.0004,4136.1,4136.0,23.95545722]
[1759139199212,0.0004,4136.1,4136.0,24.05238474]
[1759139201686,0.001,4137.0,4136.8,2.4173274]
[1759139201988,0.001,4137.0,4136.8,5.93980025]
[1759139202199,0.001,4137.0,4136.8,6.76450025]
[1759139202400,0.001,4137.0,4136.8,21.26450025]
[1759139202597,0.001,4137.0,4136.8,22.05650025]
[1759139205221,0.001,4137.0,4136.8,22.53110081]
[1759139211323,0.0002,4136.9,4136.8,22.53110081]
[1759139211927,0.0002,4136.9,4136.8,22.76280081]
[1759139220827,0.0002,4136.9,4136.8,26.99280081]
[1759139222230,0.0002,4136.9,4136.8,26.99480081]
[1759139224721,0.09689653,4138.9,4136.9,3.20924089]
[1759139225000,0.09689653,4138.9,4138.6,2.41627277]
[1759139225196,0.6623,4138.8,4138.6,2.41626448]
[1759139225443,0.09689653,4138.9,4136.9,0.792]
[1759139225624,4.76585389,4138.5,4137.9,2.41663152]
[1759139225799,0.6623,4138.4,4138.0,2.41658601]
[1759139225997,4.76585389,4138.2,4137.7,2.41680063]
[1759139226317,4.76585389,4138.2,4137.7,2.4167478]
[1759139226318,0.6623,4138.1,4137.7,2.4167478]
[1759139226503,0.6623,4138.0,4137.7,16.9167478]
[1759139226705,0.6623,4137.9,4137.7,16.9167478]
[1759139227013,0.6623,4137.8,4137.7,14.5]
[1759139227319,0.6623,4137.8,4137.7,16.9168016]
[1759139227521,0.6623,4137.8,4137.7,14.5]
[1759139227825,0.6623,4137.8,4137.7,16.9168016]
[1759139229410,0.6623,4137.8,4137.7,2.4168016]
[1759139229934,0.6623,4137.8,4137.7,16.9168016]
[1759139233107,0.6623,4137.8,4137.7,14.5]
[1759139233869,0.6623,4137.8,4137.7,16.9168016]
[1759139234692,5.41684185,4137.7,4136.9,2.4172274]
[1759139234965,5.41684185,4137.7,4136.8,0.002]
[1759139234966,4.76585389,4137.5,4136.8,0.002]
[1759139235175,4.76585389,4137.5,4137.0,14.5]
[1759139235376,0.7047,4137.4,4137.0,14.5]
[1759139235590,1.43168458,4137.4,4137.0,14.5]
[1759139235794,0.7047,4137.3,4137.0,14.5]
[1759139235997,0.7039,4137.2,4137.0,14.5]
[1759139236154,0.4697,4137.1,4137.0,14.5]
[1759139237252,0.4697,4137.1,4137.0,16.91721053]
[1759139238191,0.7047,4137.1,4137.0,16.91721053]
[1759139239910,0.235,4137.1,4137.0,16.91721053]
[1759139240111,1.19668458,4137.4,4137.3,2.41703526]
[1759139240263,0.4697,4137.4,4137.3,2.41703526]
[1759139240989,0.7047,4137.4,4137.3,2.41703526]
[1759139243676,0.7047,4137.4,4137.3,16.91703526]
[1759139244797,0.7047,4137.4,4137.3,17.03783526]
[1759139247899,0.235,4137.4,4137.3,17.03783526]
[1759139248400,5.47055389,4137.4,4137.3,14.6208]
[1759139248565,5.47055389,4137.4,4137.3,17.03783526]
[1759139257716,5.00085389,4137.4,4137.3,17.03783526]
[1759139259301,5.00085389,4137.4,4137.3,14.6208]
[1759139259713,5.44255389,4137.4,4137.3,14.6208]
[1759139260734,5.44255389,4137.4,4137.3,17.03783526]
[1759139260936,5.44175389,4137.4,4137.3,17.03783526]
[1759139261108,5.44275389,4137.4,4137.3,14.6208]
[1759139261749,5.44275389,4137.4,4137.3,17.03783526]
[1759139262239,5.44275389,4137.4,4137.3,14.6208]
[1759139262840,5.44275389,4137.4,4137.3,17.03783526]
[1759139263037,5.00105389,4137.4,4137.3,17.03783526]
[1759139263338,4.76685389,4137.4,4137.3,17.03783526]
[1759139264462,0.001,4137.4,4137.3,17.03783526]
[1759139265647,5.44535389,4137.4,4137.3,14.6208]
[1759139265853,6.17233494,4137.4,4137.3,14.6208]
[1759139266241,1.40648105,4137.4,4137.3,14.6208]
[1759139266644,0.72798105,4137.4,4137.3,17.03783526]
[1759139267356,0.001,4137.4,4137.3,17.48363526]
[1759139267660,0.001,4137.4,4137.3,17.03783526]
[1759139273250,0.001,4137.4,4137.3,14.6208]
[1759139273449,0.001,4137.4,4137.3,17.03783526]
[1759139276243,0.001,4137.4,4137.3,19.35599361]
[1759139276442,0.001,4137.4,4137.3,20.04259361]
[1759139276842,0.001,4137.4,4137.3,19.35599361]
[1759139278250,0.001,4137.4,4137.3,17.03783526]
[1759139279079,0.001,4137.4,4137.3,14.6208]
[1759139279395,0.2378,4137.4,4137.3,14.6208]
[1759139279685,0.001,4137.4,4137.3,14.6208]
[1759139279861,0.001,4137.4,4137.3,17.03783526]
[1759139281083,0.001,4137.4,4137.3,17.72443526]
[1759139281264,0.001,4137.4,4137.3,20.0424934]
[1759139281683,0.001,4137.4,4137.3,19.3558934]
[1759139282387,0.001,4137.4,4137.3,19.8016934]
[1759139282598,0.001,4137.4,4137.3,23.0774934]
[1759139283870,0.001,4137.4,4137.3,23.8694934]
[1759139286002,0.0002,4137.4,4137.3,23.8694934]
[1759139287059,0.0002,4137.4,4137.3,23.96637397]
[1759139287686,1e-08,4138.7,4138.6,3.20827603]
[1759139287996,1e-08,4138.7,4138.6,6.24227603]
[1759139288195,1e-08,4138.7,4138.6,6.92887603]
[1759139288365,1e-08,4138.7,4138.6,21.42887603]
[1759139289495,1e-08,4138.7,4138.6,21.91658361]
[1759139289661,1e-08,4138.7,4138.6,22.828206]
[1759139290094,1e-08,4138.7,4138.6,22.34049842]
[1759139294722,1e-08,4138.7,4138.6,22.92511034]
[1759139296935,1e-08,4138.7,4138.6,22.92411034]
[1759139297795,1e-08,4138.7,4138.6,23.04491034]
[1759139298937,1e-08,4138.7,4138.6,18.53331034]
[1759139299117,0.65670001,4138.7,4138.6,17.01313196]
[1759139299295,0.65670001,4138.7,4138.6,20.04613196]
[1759139299495,0.65670001,4138.7,4138.6,19.94927603]
[1759139302526,0.65670001,4138.7,4138.6,19.94827603]
[1759139302907,1e-08,4138.7,4138.6,19.94827603]
[1759139303093,1e-08,4138.7,4138.6,22.18473893]
[1759139303928,1e-08,4138.7,4138.6,22.66334496]
[1759139304127,1e-08,4138.7,4138.6,22.18473893]
[1759139304500,1e-08,4138.7,4138.6,19.15273893]
[1759139304700,1e-08,4138.7,4138.6,22.18473893]
[1759139305136,1e-08,4138.7,4138.6,22.97673893]
[1759139305301,1e-08,4138.7,4138.6,23.42643893]
[1759139305800,1e-08,4138.7,4138.6,22.97673893]
[1759139308337,1e-08,4138.7,4138.6,23.42643893]
[1759139308520,1e-08,4138.7,4138.6,23.9179711]
[1759139309237,1e-08,4138.7,4138.6,23.5890711]
[1759139309735,1e-08,4138.7,4138.6,24.0387711]
[1759139309906,1e-08,4138.7,4138.6,27.8190711]
[1759139310829,0.42720001,4139.0,4138.9,2.41610089]
[1759139311033,0.42720001,4139.0,4138.9,6.44131852]
[1759139311236,0.42720001,4139.0,4138.9,6.56211852]
[1759139311546,0.42720001,4139.0,4138.9,21.06211852]
[1759139311743,0.2297,4139.2,4139.1,2.41598415]
[1759139311946,0.2297,4139.2,4139.1,5.47214399]
[1759139311947,0.001,4139.2,4139.1,5.47214399]
[1759139312140,0.001,4139.2,4139.1,9.2048804]
[1759139312318,0.001,4139.2,4139.1,7.03898415]
[1759139312519,0.001,4139.2,4139.1,21.53898415]
[1759139312917,0.001,4139.2,4139.1,21.30968415]
[1759139315334,0.001,4139.2,4139.1,21.53898415]
[1759139318673,0.001,4139.2,4139.1,20.85998415]
[1759139318862,0.001,4139.2,4139.1,27.56188442]
[1759139320283,0.001,4139.2,4139.1,26.76988442]
[1759139320284,0.6765,4139.2,4139.1,26.76988442]
[1759139320451,0.6765,4139.2,4139.1,21.26598415]
[1759139320652,0.6765,4139.2,4139.1,24.29698415]
[1759139324986,0.6765,4139.2,4139.1,20.06698415]
[1759139325357,0.001,4139.2,4139.1,20.06698415]
[1759139325886,0.6765,4139.2,4139.1,17.03598415]
[1759139326205,0.6765,4139.2,4139.1,20.06698415]
[1759139328567,5.43989463,4139.2,4139.1,16.91598415]
[1759139328787,5.98398409,4139.2,4139.1,16.91598415]
[1759139328979,5.98398409,4139.2,4139.1,19.94698415]
[1759139329891,0.6765,4139.2,4139.1,19.94698415]
[1759139330678,0.001,4139.2,4139.1,19.94698415]
[1759139330996,0.001,4139.2,4139.1,21.46218415]
[1759139335897,0.0002,4139.2,4139.1,21.46218415]
[1759139338683,0.0002,4139.2,4139.1,21.58218415]
[1759139339382,0.0002,4139.2,4139.1,23.98201265]
[1759139339772,0.0002,4139.2,4139.1,28.21201265]
[1759139342308,0.0002,4139.2,4139.1,25.18101265]
[1759139342516,0.0002,4139.2,4139.1,28.21201265]
[1759139342822,0.0002,4139.2,4139.1,27.48881265]
[1759139343035,0.0002,4139.2,4139.1,28.21201265]
[1759139343319,1e-08,4139.7,4139.6,3.20769233]
[1759139343506,1e-08,4139.7,4139.6,6.92003816]
[1759139343879,1e-08,4139.7,4139.6,22.14323816]
[1759139344477,1e-08,4139.7,4139.6,18.39003816]
[1759139344685,0.67550001,4139.7,4139.6,17.59803816]
[1759139344884,0.67550001,4139.7,4139.6,19.94569233]
[1759139345085,0.67550001,4139.7,4139.6,16.91569233]
[1759139345415,0.67550001,4139.7,4139.6,19.94569233]
[1759139347015,0.67550001,4139.7,4139.6,16.91569233]
[1759139347607,0.67550001,4139.7,4139.6,19.94569233]
[1759139347820,0.67550001,4139.7,4139.6,5.44569233]
[1759139348112,0.67550001,4139.7,4139.6,2.41569233]
[1759139348316,0.67550001,4139.7,4139.6,17.53]
[1759139348505,0.67550001,4139.7,4139.6,19.94569233]
[1759139349511,0.67550001,4139.7,4139.6,16.91569233]
[1759139349712,0.67550001,4139.7,4139.6,17.53]
[1759139349913,0.67550001,4139.7,4139.6,19.94569233]
[1759139352389,0.67550001,4139.7,4139.6,16.91569233]
[1759139352588,0.67550001,4139.7,4139.6,19.94569233]
[1759139353923,0.67550001,4139.7,4139.6,14.5]
[1759139354125,1.21948947,4139.7,4139.6,14.5]
[1759139354916,1.21948947,4139.7,4139.6,14.62]
[1759139355322,1.21948947,4139.7,4139.6,14.5]
[1759139355705,3.63512345,4139.7,4139.6,14.5]
[1759139355927,4.21948947,4139.7,4138.6,0.002]
[1759139356238,4.33491594,4139.6,4138.8,2.41614026]
[1759139356405,3.07815305,4139.5,4139.2,14.5]
[1759139356727,0.6624,4139.4,4139.2,14.5]
[1759139356937,2.41575305,4139.5,4139.2,14.5]
[1759139356938,0.6624,4139.3,4139.2,14.5]
[1759139357295,5.42579463,4139.3,4139.2,14.5]
[1759139357643,6.70487367,4139.3,4139.2,14.5]
[1759139358521,9.12074108,4139.3,4139.2,14.5]
[1759139358740,6.70487367,4139.3,4139.2,14.5]
[1759139360226,5.42579463,4139.3,4139.2,14.5]
[1759139360800,5.42499463,4139.3,4139.2,14.5]
[1759139363313,4.76339463,4139.3,4139.2,14.5]
[1759139363741,5.42579463,4139.3,4139.2,14.5]
[1759139368242,5.42579463,4139.3,4138.9,2.53688886]
[1759139368447,0.6624,4139.2,4138.9,2.53688886]
[1759139368652,0.6624,4139.1,4139.0,14.5]
[1759139368948,5.42579463,4139.1,4139.0,14.5]
[1759139369332,5.42579463,4139.1,4139.0,16.91604252]
[1759139369534,4.99479463,4139.1,4139.0,16.91604252]
[1759139369709,4.76339463,4139.1,4139.0,16.91604252]
[1759139369913,0.001,4139.3,4139.2,2.41592578]
[1759139370210,0.001,4139.3,4139.2,2.53592578]
[1759139370412,0.001,4139.3,4139.2,5.56592578]
[1759139370848,0.001,4139.3,4139.2,21.50026261]
[1759139372325,0.001,4139.3,4139.2,20.38812578]
[1759139372648,0.001,4139.3,4139.2,20.63332578]
[1759139373114,0.001,4139.3,4139.2,19.94592578]
[1759139373315,0.001,4139.3,4139.2,20.63332578]
[1759139376558,0.001,4139.3,4139.2,20.38812578]
[1759139377458,0.001,4139.3,4139.2,22.69306261]
[1759139377666,0.001,4139.3,4139.2,22.93826261]
[1759139377973,0.001,4139.3,4139.2,22.69306261]
[1759139378154,0.001,4139.3,4139.2,16.91592578]
[1759139378327,0.001,4139.3,4139.2,19.94592578]
[1759139379166,0.001,4139.3,4139.2,20.40852578]
[1759139379370,0.001,4139.3,4139.2,20.65552578]
[1759139380772,0.001,4139.3,4139.2,20.77552578]
[1759139380978,0.001,4139.3,4139.2,23.09468261]
[1759139385789,0.0002,4139.3,4139.2,23.09468261]
[1759139389596,0.0002,4139.3,4139.2,19.35508261]
[1759139389804,0.0002,4139.3,4139.2,22.38408261]
[1759139390514,0.0002,4139.3,4139.2,22.84668261]
[1759139390671,0.0002,4139.3,4139.2,23.09368261]
[1759139396124,0.0002,4139.3,4139.2,27.32368261]
[1759139400390,0.0002,4139.3,4139.2,23.58508261]
[1759139400721,0.6828,4139.3,4139.2,24.29492578]
[1759139402107,0.6828,4139.3,4139.2,20.06492578]
[1759139403343,0.6828,4139.3,4139.2,17.03592578]
[1759139403513,0.6828,4139.3,4139.2,20.06492578]
[1759139403833,0.6828,4139.3,4139.2,2.53592578]
[1759139404134,0.6828,4139.3,4139.2,5.56492578]
[1759139404304,0.6828,4139.3,4139.2,20.06492578]
[1759139406354,0.6828,4139.3,4139.2,17.649]
[1759139406939,1.30224642,4139.3,4139.2,14.62]
[1759139409805,0.6828,4139.3,4139.2,14.62]
[1759139410830,0.682,4139.3,4139.2,14.62]
[1759139411643,0.682,4139.3,4139.2,14.5]
[1759139414523,0.682,4139.3,4139.1,0.002]
[1759139414725,5.51166424,4139.2,4139.1,0.002]
[1759139415021,6.38461232,4139.2,4139.1,14.502]
[1759139415221,7.04541232,4139.2,4139.1,14.502]
[1759139415738,1.53374808,4139.2,4139.1,14.502]
[1759139415932,6.17246424,4139.2,4139.1,14.502]
[1759139416643,11.58839002,4139.2,4139.1,14.502]
[1759139417009,11.58839002,4139.2,4139.1,0.002]
[1759139417410,9.17246424,4139.2,4139.1,0.002]
[1759139417947,11.58839002,4139.2,4139.1,0.002]
[1759139418145,13.29161013,4139.2,4139.1,0.002]
[1759139418825,10.87568435,4139.2,4139.1,0.002]
[1759139419334,13.29161013,4139.2,4139.1,0.002]
[1759139426158,10.87568435,4139.2,4139.1,0.002]
[1759139426471,13.38851299,4139.2,4139.1,0.002]
[1759139433038,16.41651299,4139.2,4139.1,0.002]
[1759139433239,16.41651299,4139.2,4138.7,0.002]
[1759139433240,2.41615927,4138.8,4138.7,0.002]
[1759139433454,13.95582351,4138.8,4138.7,0.002]
[1759139433653,14.61662351,4138.8,4138.7,0.002]
[1759139434263,12.20046424,4138.8,4138.7,0.002]
[1759139434570,14.28523694,4138.8,4138.7,0.002]
[1759139434740,16.18652924,4138.8,4138.7,0.002]
[1759139435855,13.76956997,4138.8,4138.7,0.002]
[1759139436168,13.53706997,4138.8,4138.7,0.002]
[1759139437156,8.60857767,4138.8,4138.7,0.002]
[1759139437357,11.53966424,4138.8,4138.7,0.696]
[1759139437561,11.53966424,4138.8,4138.7,0.002]
[1759139438477,11.53966424,4138.8,4138.7,0.4665]
[1759139438636,11.53966424,4138.8,4138.7,0.696]
[1759139438836,8.51166424,4138.8,4138.7,0.696]
[1759139439065,11.53966424,4138.8,4138.7,0.696]
[1759139441212,11.53966424,4138.8,4138.7,14.502]
[1759139441420,14.63982351,4138.8,4138.7,14.502]
[1759139441590,16.43016323,4138.8,4138.7,14.502]
[1759139441780,13.56300396,4138.8,4138.7,14.502]
[1759139441981,15.97916323,4138.8,4138.7,14.502]
[1759139442517,16.43016323,4138.8,4138.7,0.002]
[1759139443017,16.55296323,4138.8,4138.7,0.002]
[1759139446098,2.53701765,4138.7,4138.6,0.002]
[1759139446328,4.56397977,4138.7,4138.6,0.002]
[1759139446532,5.24797977,4138.7,4138.6,0.002]
[1759139446705,10.92805704,4138.4,4138.3,0.002]
[1759139446919,13.95605704,4138.4,4138.3,0.002]
[1759139447300,14.73698502,4138.4,4138.3,0.002]
[1759139447536,16.52732474,4138.4,4138.3,0.002]
[1759139448339,20.55294176,4138.4,4138.3,0.002]
[1759139458928,20.10194176,4138.4,4138.3,0.002]
[1759139459948,20.55294176,4138.4,4138.3,0.002]
[1759139460145,19.86894176,4138.4,4138.3,0.002]
[1759139460684,19.86814176,4138.4,4138.3,0.002]
[1759139461284,20.10114176,4138.4,4138.3,0.002]
[1759139463094,20.10114176,4138.4,4137.9,0.4675]
[1759139463095,0.1208,4138.3,4137.0,14.502]
[1759139463273,7.18538382,4137.8,4137.1,0.6993]
[1759139463484,7.76864063,4137.8,4137.6,0.2298]
[1759139463682,7.76864063,4137.8,4137.1,0.002]
[1759139463683,11.49594063,4137.8,4137.7,0.4695]
[1759139463853,13.91268382,4137.8,4137.7,0.6993]
[1759139465655,13.91268382,4137.8,4137.7,0.002]
[1759139465852,15.55751727,4137.8,4137.7,0.002]
[1759139466061,2.41691842,4137.5,4137.4,0.002]
[1759139466267,13.21355905,4137.5,4137.4,0.002]
[1759139466492,13.44655905,4137.5,4137.4,0.002]
[1759139467185,13.89755905,4137.5,4137.4,0.002]
[1759139467396,14.24429254,4137.5,4137.4,0.002]
[1759139468170,13.79329254,4137.5,4137.4,0.002]
[1759139468670,14.71379254,4137.5,4137.4,0.002]
[1759139469294,14.26279254,4137.5,4137.4,0.002]
[1759139470273,14.70189254,4137.5,4137.4,0.002]
[1759139475893,14.70329254,4137.5,4137.4,0.002]
[1759139477090,14.70329254,4137.5,4137.3,0.002]
[1759139477091,6.32977684,4137.4,4137.3,0.002]
[1759139477422,10.97773431,4137.2,4137.1,0.002]
[1759139477622,18.77437494,4137.2,4137.1,0.002]
[1759139477784,19.45607494,4137.2,4137.1,0.002]
[1759139478310,19.55304052,4137.2,4137.1,0.002]
[1759139478481,21.31159515,4137.2,4137.1,0.002]
[1759139483621,20.87109515,4137.2,4137.1,0.002]
[1759139483826,21.31159515,4137.2,4137.1,0.002]
[1759139485493,20.87109515,4137.2,4137.1,0.002]
[1759139485694,21.31079515,4137.2,4137.1,0.002]
[1759139488103,6.32995211,4137.1,4137.0,0.002]
[1759139488424,7.1171856,4137.1,4137.0,0.002]
[1759139488726,7.45535753,4137.1,4137.0,0.002]
[1759139492843,7.83455629,4137.1,4137.0,0.002]
[1759139495510,7.39405629,4137.1,4137.0,0.002]
[1759139497042,10.18085629,4137.1,4137.0,0.002]
[1759139498836,10.42205629,4137.1,4137.0,0.002]
[1759139499659,10.42105629,4137.1,4137.0,0.002]
[1759139499864,10.17985629,4137.1,4137.0,0.002]
[1759139500540,10.42735629,4137.1,4137.0,0.002]
[1759139501573,10.17985629,4137.1,4137.0,0.002]
[1759139501873,10.17639727,4137.1,4137.0,0.002]
[1759139502777,11.0052379,4137.1,4137.0,0.6993]
[1759139502981,13.30630565,4137.1,4137.0,0.6993]
[1759139504276,10.27930565,4137.1,4137.0,0.6993]
[1759139504483,13.30630565,4137.1,4137.0,0.6993]
[1759139505984,13.68547216,4137.1,4137.0,0.6993]
[1759139507864,10.65847216,4137.1,4137.0,0.6993]
[1759139508069,13.68547216,4137.1,4137.0,0.6993]
[1759139509981,10.65847216,4137.1,4137.0,0.6993]
[1759139510187,13.30630565,4137.1,4137.0,0.6993]
[1759139510377,8.53766502,4137.1,4137.0,0.6993]
[1759139510576,8.53686502,4137.1,4137.0,0.6993]
[1759139511491,8.53786502,4137.1,4137.0,0.6993]
[1759139519890,8.53686502,4137.1,4137.0,0.6993]
[1759139520509,8.53686502,4137.1,4137.0,0.002]
[1759139521639,8.53686502,4137.1,4137.0,0.6993]
[1759139521817,3.09797193,4137.1,4137.0,0.6993]
[1759139522007,8.54112404,4137.1,4137.0,2.23171]
[1759139522618,6.12397193,4137.1,4137.0,2.23171]
[1759139523840,8.54112404,4137.1,4137.0,0.6993]
[1759139524722,8.54112404,4137.1,4137.0,0.002]
[1759139524928,8.90942404,4137.1,4137.0,0.002]
[1759139525327,9.36852404,4137.1,4137.0,0.002]
[1759139525525,6.95137193,4137.1,4136.5,0.2056]
[1759139525734,2.41744427,4136.6,4136.5,0.2056]
[1759139525906,5.44344427,4136.6,4136.5,0.2056]
[1759139526103,3.4757,4136.6,4136.5,0.6553]
[1759139526318,3.4757,4136.6,4136.5,15.1553]
[1759139526736,5.89314427,4136.6,4136.5,14.5]
[1759139526941,3.4757,4136.6,4136.5,14.5]
[1759139527309,3.4757,4136.6,4136.5,14.9497]
[1759139527744,3.4757,4136.6,4136.5,15.1973]
[1759139529004,3.4757,4136.6,4136.5,15.1993]
[1759139530035,0.4497,4136.6,4136.5,16.96118726]
[1759139530341,0.4497,4136.6,4136.5,19.37868997]
[1759139530844,0.001,4137.1,4136.8,2.41732515]
[1759139531041,3.026,4137.0,4136.9,0.7187]
[1759139531725,0.72802509,4137.1,4137.0,2.41721053]
[1759139531726,6.75402509,4137.1,4137.0,2.41721053]
[1759139532042,3.027,4137.1,4137.0,3.13591053]
[1759139533137,0.001,4137.1,4137.0,3.6912336]
[1759139533917,0.001,4137.1,4137.0,18.1912336]
[1759139535649,0.0002,4137.1,4137.0,18.3120336]
[1759139544251,0.0002,4137.1,4137.0,19.1040336]
[1759139544962,0.0002,4137.1,4137.0,19.58849119]
[1759139545727,0.0002,4137.1,4137.0,22.61349119]
[1759139546355,0.0002,4137.1,4137.0,22.61549119]
[1759139546559,0.0002,4137.1,4137.0,19.59049119]
[1759139546748,0.0002,4137.1,4137.0,22.61549119]
[1759139552099,0.0002,4137.1,4137.0,22.71239358]
[1759139556996,0.0002,4137.1,4137.0,22.61549119]
[1759139559078,0.0002,4137.1,4137.0,22.71239053]
[1759139560573,0.0004,4137.3,4137.2,3.20909368]
[1759139560781,0.0004,4137.3,4137.2,8.75125593]
[1759139561078,0.0004,4137.3,4137.2,6.93559368]
[1759139561277,0.0004,4137.3,4137.2,21.43559368]
[1759139565228,0.0004,4137.3,4137.2,17.70909368]
[1759139565422,0.67,4137.3,4137.2,19.94009368]
[1759139566417,0.2334,4137.3,4137.2,19.94009368]
[1759139566618,0.2334,4137.3,4137.2,22.29208217]
[1759139566816,0.0004,4137.3,4137.2,22.29208217]
[1759139567019,0.0004,4137.3,4137.2,19.26908217]
[1759139567217,0.2334,4137.3,4137.2,22.29208217]
[1759139569722,0.0004,4137.3,4137.2,23.54418217]
[1759139569903,0.0004,4137.3,4137.2,23.78658217]
[1759139574459,0.0004,4137.3,4137.2,28.01658217]
[1759139575455,0.0004,4137.3,4137.2,27.55648217]
[1759139575623,0.0004,4137.3,4137.2,28.01658217]
[1759139576758,0.0004,4137.3,4137.2,27.31408217]
[1759139580180,0.0004,4137.3,4137.2,27.77418217]
[1759139580333,0.0004,4137.3,4137.2,28.01658217]
[1759139581868,0.0004,4137.3,4137.2,27.55648217]
[1759139582168,0.0004,4137.3,4137.2,28.01658217]
[1759139585549,0.001,4137.6,4137.5,3.20891842]
[1759139585550,0.0006,4137.6,4137.5,3.20891842]
[1759139585751,0.0006,4137.6,4137.5,8.75008067]
[1759139585951,0.2336,4137.6,4137.5,8.87088067]
[1759139586167,0.6702,4137.6,4137.5,23.37088067]
[1759139586469,0.6702,4137.6,4137.5,27.60088067]
[1759139587278,0.0006,4137.6,4137.5,27.60088067]
[1759139589136,0.0006,4137.6,4137.5,28.29648067]
[1759139589340,0.0006,4137.6,4137.5,28.06838067]
[1759139589540,0.0006,4137.6,4137.5,27.60088067]
[1759139593864,0.2372,4137.6,4137.5,27.60088067]
[1759139594368,0.0006,4137.6,4137.5,27.60088067]
[1759139595386,0.0006,4137.6,4137.5,28.28548067]
[1759139595586,0.0006,4137.6,4137.5,28.04738067]
[1759139595881,0.0006,4137.6,4137.5,27.60088067]
[1759139596085,0.2372,4137.6,4137.5,19.93891842]
[1759139596455,0.7113,4137.6,4137.5,19.93891842]
[1759139597083,0.7113,4137.6,4137.5,19.94091842]
[1759139597859,0.7113,4137.6,4137.5,16.91891842]
[1759139598182,0.7113,4137.6,4137.5,19.94091842]
[1759139601051,0.7113,4137.6,4137.5,5.44091842]
[1759139601588,0.7113,4137.6,4137.5,19.94091842]
[1759139603298,0.7113,4137.6,4137.5,16.91891842]
[1759139603496,0.7113,4137.6,4137.5,19.94091842]
[1759139603800,0.0006,4137.6,4137.5,19.94091842]
[1759139603999,0.0006,4137.6,4137.5,22.24516936]
[1759139604500,0.2372,4137.6,4137.5,22.24516936]
[1759139604684,0.0006,4137.6,4137.5,22.24516936]